Cogmind - Beta 14 @@@ ROGUE MODE // 2024.10.06 @ 21:28:21 Player: Syanka Result: Destroyed by G-47 Trooper with Backup Laser I Performance ------------- Evolutions (2) 1000 Regions Visited (5) 1000 Robots Destroyed (93) 465 Value Destroyed (3428) 3428 Prototype IDs (4) 80 Alien Tech Used (0) 0 Bonus (1023) 1023 TOTAL SCORE: 6996 Bonus ------- High Alert Combat Kills 323 Entered Garrisons 200 Used RIF Installer 500 Cogmind --------- Core Integrity 0/550 Matter 98/300 Energy 150/150 System Corruption 17% Temperature Cool (9) Movement Treading (240) Ox1 Location -8/Materials Parts ------- > --- POWER (1) -------- Micro Nuclear Core > --- PROPULSION (2) --- Medium Treads Medium Treads > --- UTILITY (6) ------ Advanced Heat Sink Huge Storage Unit Structural Scanner Trap Scanner (fused) Hardened Medium Armor Plating Relay Coupler [Grunt] (22) > --- WEAPON (2) ------- Assault Cannon Scythe > --- INVENTORY (25) --- Micro Nuclear Core Light Treads Medium Treads Wheel High-capacity Matter Pod (200) Hardened Medium Armor Plating Relay Coupler [NC] (28) Relay Coupler [NC] (32) Relay Coupler [NC] (41) Relay Coupler [Swarmer] (38) Relay Coupler [Swarmer] (48) Relay Coupler [Grunt] (35) Relay Coupler [Grunt] (34) Relay Coupler [Brawler] (23) Relay Coupler [Duelist] (28) Relay Coupler [Sentry] (26) Relay Coupler [Sentry] (32) Relay Coupler [Specialist] (21) Relay Coupler [Hunter] (14) High-powered Shotgun Missile Launcher Missile Launcher Scythe Peak State ------------ > --- POWER ------------ Micro Nuclear Core > --- PROPULSION ------- Medium Treads Medium Treads > --- UTILITY ---------- Advanced Heat Sink Huge Storage Unit Structural Scanner Trap Scanner Hardened Medium Armor Plating Relay Coupler [Grunt] > --- WEAPON ----------- Missile Launcher Scythe > --- INVENTORY -------- Micro Nuclear Core Medium Treads Medium Treads Wheel High-capacity Matter Pod Hardened Medium Armor Plating Hardened Medium Armor Plating Relay Coupler [NC] Relay Coupler [NC] Relay Coupler [NC] Relay Coupler [Swarmer] Relay Coupler [Swarmer] Relay Coupler [Grunt] Relay Coupler [Grunt] Relay Coupler [Brawler] Relay Coupler [Duelist] Relay Coupler [Sentry] Relay Coupler [Sentry] Relay Coupler [Specialist] Relay Coupler [Hunter] High-powered Shotgun Assault Cannon Missile Launcher Datajack Scythe [Rating: 41] Favorites ----------- Power Cooled Ion Engine Engine Cooled Ion Engine Power Core Micro Nuclear Core Propulsion Wheel Treads Medium Treads Wheel Wheel Flight Unit Improved Flight Unit Utility Huge Storage Unit Device Seismic Detector Storage Huge Storage Unit Processor Salvage Targeting Computer Hackware Relay Coupler [Grunt] Protection Hardened Light Armor Plating Weapon Beam Rifle Energy Gun Beam Rifle Ballistic Gun Light Assault Rifle Ballistic Cannon Assault Cannon Launcher Rocket Launcher Special Weapon Mining Laser Slashing Weapon Scythe Special Melee Weapon Datajack Build | -11 -10 -9 -8 -8 -8 ------- Run | Yrd Mat Mat Mat Gar Mat Slots Evolved 4 | . . 2 2 . . Power . | . . . . . . Propulsion . | . . . . . . Utility 4 | . . 2 2 . . Weapon . | . . . . . . Parts Attached 250 | 9 35 110 48 33 15 Power 10 | 1 2 1 . 5 1 Engine 8 | 1 2 1 . 4 . Core 2 | . . . . 1 1 Reactor . | . . . . . . Propulsion 75 | 3 14 36 14 4 4 Treads 37 | 1 7 15 8 2 4 Leg . | . . . . . . Wheel 36 | 2 7 19 6 2 . Hover . | . . . . . . Flight 2 | . . 2 . . . Utility 86 | 2 9 44 20 10 1 Device 63 | 1 5 36 18 3 . Storage 3 | 1 1 1 . . . Processor 1 | . . 1 . . . Hackware 1 | . . . . 1 . Protection 18 | . 3 6 2 6 1 Artifact . | . . . . . . Weapon 79 | 3 10 29 14 14 9 Energy Gun 32 | 1 4 17 7 3 . Energy Cannon . | . . . . . . Ballistic Gun 7 | 2 2 . . 2 1 Ballistic Cannon 4 | . . 1 . 2 1 Launcher 7 | . 1 3 . . 3 Special Weapon 9 | . 3 6 . . . Impact Weapon . | . . . . . . Slashing Weapon 17 | . . 2 7 5 3 Piercing Weapon . | . . . . . . Special Melee Weapon 3 | . . . . 2 1 Unidentified Prototypes 4 | . 1 1 1 1 . Parts Lost 19 | . . 3 5 8 3 Power 4 | . . 1 . 3 . Propulsion 3 | . . 1 . 1 1 Utility 10 | . . 1 4 4 1 Weapon 2 | . . . 1 . 1 Highest Loss Streak 5 | . . 3 5 3 2 To Critical Strikes . | . . . . . . Average Slot Usage (%) 99 | . 99 99 99 98 99 Engine 9 | . 13 10 9 6 . Core 1 | . . . . 1 9 Treads 7 | . 2 2 7 16 17 Wheel 13 | . 25 19 10 1 . Device 21 | . 13 20 26 25 27 Storage 10 | . 14 11 9 9 9 Processor 4 | . . 11 8 . . Hackware 2 | . . . . 7 9 Protection 5 | . . 1 8 11 9 Energy Gun 10 | . 10 18 13 1 . Ballistic Gun 2 | . 10 . . . . Special Weapon 2 | . 7 2 . . . Slashing Weapon 3 | . . . 4 7 12 Special Melee Weapon 1 | . . . . 7 2 Peak Build Rating 41 | 7 15 25 33 40 41 Average Rating 23 | 5 12 18 28 34 38 On Entrance 18 | . 7 14 21 31 39 Naked Turns . | . . . . . . Heaviest Build 106 | 13 97 100 104 106 106 Greatest Support 56 | 20 40 40 56 56 56 Greatest Overweight (x) 10 | 1 8 9 5 10 3 Average Overweight (x) 3 | . 3 3 3 2 1 Largest Inventory Capacity 25 | 8 25 25 25 25 25 Average Capacity 24 | 7 24 25 25 25 25 Most Carried 25 | 7 25 25 25 25 25 Average Carried 23 | 3 22 24 24 24 24 Final Capacity 25 | 8 25 25 25 25 25 Final Carried 25 | 7 25 25 21 25 23 Class Distribution -------------------- 64% | Mutant 22% | Bothacker-Mutant 12% | Scavenger-Mutant Dominant Class ---------------- Mutant | -10/Materials Mutant | -9/Materials Mutant | -8/Materials Bothacker-Mutant | -8/Garrison Mutant | -8/Materials Resources | -11 -10 -9 -8 -8 -8 ----------- Run | Yrd Mat Mat Mat Gar Mat Matter Collected 3696 | 278 342 1321 848 585 322 Remotely 732 | . 57 254 . 421 . Salvage Created 3382 | 115 331 1214 633 675 414 Parts 182 | 9 21 65 26 34 27 Haulers Intercepted . | . . . . . . Recyclers Shooed 2 | . . 2 . . . Parts Field Recycled . | . . . . . . Retrieved Matter . | . . . . . . Parts Self-Destructed . | . . . . . . Prevented . | . . . . . . Kills | -11 -10 -9 -8 -8 -8 ------- Run | Yrd Mat Mat Mat Gar Mat Combat Hostiles Destroyed 73 | . 9 25 11 16 12 Melee 14 | . . . . 8 6 Guns 39 | . 8 14 10 7 . Cannons 1 | . . . . 1 . AOE 15 | . . 9 . . 6 Classes Destroyed 15 | 2 5 3 3 2 . Worker 3 | . 1 2 . . . Builder 4 | . 1 2 . . 1 Tunneler 2 | 2 . . . . . Recycler 5 | 1 . 3 1 . . Mechanic 1 | . . . 1 . . Operator 2 | . . 2 . . . Watcher 3 | . 1 2 . . . Swarmer 18 | . 5 9 . . 4 Grunt 22 | . 4 9 1 5 3 Brawler 2 | . . 1 1 . . Duelist 2 | . . . 1 . 1 Sentry 22 | . . 6 7 6 3 Specialist 2 | . . . . 2 . Hunter 2 | . . . 1 . 1 Programmer 3 | . . . . 3 . Best Kill Streak 8 | 3 6 8 2 4 4 Combat Bots Only 6 | . 6 5 2 4 3 Max Kills in Single Turn 3 | 1 1 3 1 1 2 Gunslinging . | . . . . . . Exploded 3 | . . 3 . . 2 Melee 1 | . . . . 1 1 Uniques/NPCs Destroyed . | . . . . . . Combat | -11 -10 -9 -8 -8 -8 -------- Run | Yrd Mat Mat Mat Gar Mat Hostile Shots Fired 509 | . 33 143 80 150 103 Missed 139 | . 9 39 23 43 25 Damage Taken 4609 | . 242 1091 764 1499 1013 Core 825 | . 67 205 123 230 200 Absorbed by Shields 379 | . . 202 177 . . Redirected to Shielding 97 | . . . . 97 . Regen/Repaired (Parts) 174 | . . . 13 . 161 Core Remaining (%) 73 | 100 73 48 . . . Volleys Fired 265 | 14 56 93 42 45 15 Largest 2 | 2 2 2 2 2 2 Hottest 156 | 40 112 156 126 124 69 Shots Fired 445 | 28 86 156 81 73 21 Gun 368 | 28 65 131 81 56 7 Cannon 24 | . . 2 . 17 5 Launcher 16 | . 1 6 . . 9 Special 37 | . 20 17 . . . Kinetic 139 | 28 38 2 . 59 12 Thermal 290 | . 47 148 81 14 . Explosive 16 | . 1 6 . . 9 Electromagnetic . | . . . . . . Robot Hit Streak 46 | 3 5 20 46 21 6 Robot Miss Streak 5 | 4 3 2 1 5 3 Penetration Max . | . . . . . . Secondary Targets 3 | . . 1 . 2 . Max Gunslinging Chain 1 | . . 1 . 1 . Shots Hit Robots 323 | 15 37 98 73 76 24 Core Hits 143 | 6 18 51 24 25 19 Critical Kills . | . . . . . . Critical Parts Destroyed . | . . . . . . Critical Strikes 25 | . 4 11 3 6 1 Burn 19 | . 4 11 3 1 . Blast 2 | . . . . 1 1 Sever 4 | . . . . 4 . Melee Attacks 87 | . . 2 10 59 16 Impact . | . . . . . . Slashing 86 | . . 2 10 58 16 Piercing . | . . . . . . Sneak Attacks 4 | . . . 3 1 . Combat Hostiles 1 | . . . . 1 . Follow-up Attacks . | . . . . . . Damage Inflicted 7436 | 131 443 2176 1354 1835 1497 Guns 4137 | 131 431 1462 1166 870 77 Cannons 281 | . . . . 225 56 Explosions 1543 | . . 618 . . 925 Melee 1399 | . . 32 188 740 439 Ramming 28 | . 12 16 . . . Kinetic 1309 | 131 183 . . 862 133 Thermal 3157 | . 248 1510 1166 233 . Explosive 1543 | . . 618 . . 925 Electromagnetic . | . . . . . . Impact . | . . . . . . Slashing 1399 | . . 32 188 740 439 Piercing . | . . . . . . Highest Corruption 17 | . . . 13 17 17 Average Corruption 11 | . . . 4 14 17 Corruption Purged . | . . . . . . Corruption Blocked . | . . . . . . Effects 125 | . . . 30 72 23 Message Errors 27 | . . . 8 15 4 Matter Fused 40 | . . . 5 24 11 Heat Flow Errors 10 | . . . 3 6 1 Energy Discharges 17 | . . . 6 11 . Parts Rejected 2 | . . . 1 1 . Parts Fused 1 | . . . . 1 . Data Loss (minor) 15 | . . . 3 7 5 Data Loss (major) 4 | . . . . 4 . Misfires 4 | . . . 2 . 2 Alerts 5 | . . . 2 3 . Overload Shots . | . . . . . . Overflow Damage 181 | . . 61 34 . 86 Projectiles . | . . . . . . Explosions 124 | . . 59 . . 65 Melee 57 | . . 2 34 . 21 Knockbacks 1 | . . . . 1 . Impact . | . . . . . . Kinetic 1 | . . . . 1 . Secondary . | . . . . . . Self-Inflicted Damage 56 | . 6 28 . . 22 Shots 3 | . . 1 . . 2 Rammed 2 | . 1 1 . . . Targets Rammed 2 | . 1 1 . . . Kicked . | . . . . . . Crushed . | . . . . . . Highest Temperature 376 | . 365 376 257 252 155 Average Temperature 79 | . 63 108 65 55 87 Received Heat Transfer 1047 | . 78 329 118 288 234 Effects 1 | . . 1 . . . Shutdowns 1 | . . 1 . . . Siege Activations . | . . . . . . Robots Corrupted . | . . . . . . Combat Hostiles . | . . . . . . Parts Fried . | . . . . . . Impact Corruptions . | . . . . . . Robots Melted 4 | . 1 2 1 . . Combat Hostiles 4 | . 1 2 1 . . Parts Melted 23 | . . 17 6 . . Heat Transferred 8832 | . 925 4540 2775 592 . Parts Sabotaged . | . . . . . . Parts Stolen . | . . . . . . Parts Stripped . | . . . . . . Power Chain Reactions . | . . . . . . Alert | -11 -10 -9 -8 -8 -8 ------- Run | Yrd Mat Mat Mat Gar Mat Peak Influence 937 | 15 222 504 337 937 769 Initial 456 | . 9 . 185 98 456 Average 284 | 5 48 277 198 527 584 Maximum Alert Level 3 | . 1 2 1 3 3 Low Security (%) 47 | 100 95 40 52 10 . Level 1 18 | . 4 20 47 19 . Level 2 25 | . . 38 . 35 95 Level 3 8 | . . . . 33 4 Level 4 . | . . . . . . Level 5 . | . . . . . . High Security . | . . . . . . Max Security . | . . . . . . Squads Dispatched 14 | . 2 5 5 . 2 Investigation 3 | . 1 2 . . . Extermination . | . . . . . . Reinforcement 8 | . 1 3 2 . 2 Assault . | . . . . . . Garrison 3 | . . . 3 . . Intercept . | . . . . . . Searches Triggered . | . . . . . . Construction Impeded 2 | . . 1 . . 1 Haulers Reinforced . | . . . . . . Active Scanning Responses . | . . . . . . Cargo Convoy Interrupts . | . . . . . . Stealth | -11 -10 -9 -8 -8 -8 --------- Run | Yrd Mat Mat Mat Gar Mat Distress Signals 10 | . 2 4 1 . 3 Communications Jammed . | . . . . . . Distress Signals . | . . . . . . Times Spotted 121 | . 22 43 18 20 18 Peak Tracking Total 8 | . 5 8 5 5 6 Tactical Retreats 11 | . 1 1 . 5 4 Traps | -11 -10 -9 -8 -8 -8 ------- Run | Yrd Mat Mat Mat Gar Mat Traps Triggered 4 | . 1 1 . 2 . Indirectly . | . . . . . . Trap Hack Attempts . | . . . . . . Triggered . | . . . . . . Disarmed . | . . . . . . Reprogrammed . | . . . . . . Reused . | . . . . . . Traps Extracted . | . . . . . . Installed . | . . . . . . Triggered . | . . . . . . Machines | -11 -10 -9 -8 -8 -8 ---------- Run | Yrd Mat Mat Mat Gar Mat Machines Disabled 9 | . . 3 1 3 2 Max in Single Turn 1 | . . 1 1 1 1 Garrison Relay 3 | . . . . 3 . Machines Repaired . | . . . . . . Machines Dismantled . | . . . . . . Machines Sabotaged . | . . . . . . Overloaded Fab Kills . | . . . . . . Hacking | -11 -10 -9 -8 -8 -8 --------- Run | Yrd Mat Mat Mat Gar Mat Machines Accessed 20 | . 7 6 4 1 2 Terminals 17 | . 7 6 2 1 1 Fabricators . | . . . . . . Repair Stations 2 | . . . 1 . 1 Recycling Units . | . . . . . . Scanalyzers . | . . . . . . Garrison Access 1 | . . . 1 . . Total Hacks 56 | . 16 22 13 1 4 Successful 31 | . 9 11 8 1 2 Failed 25 | . 7 11 5 . 2 Catastrophic 4 | . . . 2 . 2 Database Lockouts . | . . . . . . Manual 44 | . 16 22 4 . 2 Terminals 47 | . 16 22 6 1 2 Fabricators . | . . . . . . Repair Stations 7 | . . . 5 . 2 Recycling Units . | . . . . . . Scanalyzers . | . . . . . . Garrison Access 2 | . . . 2 . . Terminal Hacks 7 | . . 4 2 1 . Part Schematic 1 | . . 1 . . . Robot Schematic 2 | . . 2 . . . Emergency Access Points 1 | . . . . 1 . Alert Level 2 | . . 1 1 . . Locate Traps 1 | . . . 1 . . Fabricator Hacks . | . . . . . . Repair Station Hacks 5 | . . . 3 . 2 Scan Component 3 | . . . 2 . 1 Repair 2 | . . . 1 . 1 Recycling Unit Hacks . | . . . . . . Scanalyzer . | . . . . . . Garrison Access Hacks 1 | . . . 1 . . Unlock Access 1 | . . . 1 . . Unauthorized Hacks 18 | . 9 7 2 . . Terminals 18 | . 9 7 2 . . Assimilate 2 | . 1 1 . . . Operators 3 | . 1 1 1 . . Skim 13 | . 7 5 1 . . Fabricators . | . . . . . . Repair Stations . | . . . . . . Recycling Units . | . . . . . . Scanalyzers . | . . . . . . Garrison Access . | . . . . . . Data Cores Recovered . | . . . . . . Used . | . . . . . . Hacking Detections 14 | . 3 5 4 . 2 Full Trace Events . | . . . . . . Feedback Events . | . . . . . . Feedback Blocked . | . . . . . . Robot Schematics Acquired 2 | . . 2 . . . Robots Built . | . . . . . . Authchips . | . . . . . . Time . | . . . . . . Total Robot Build Rating . | . . . . . . Part Schematics Acquired 1 | . . 1 . . . Parts Built . | . . . . . . Authchips . | . . . . . . Time . | . . . . . . Total Part Build Rating . | . . . . . . Parts Repaired 2 | . . . 1 . 1 Time 70 | . . . 26 . 44 Parts Recycled . | . . . . . . Recycled Matter . | . . . . . . Retrieved Matter . | . . . . . . Retrieved Components . | . . . . . . Parts Scanalyzed . | . . . . . . Part Schematics Acquired . | . . . . . . Parts Damaged . | . . . . . . Bothacking | -11 -10 -9 -8 -8 -8 ------------ Run | Yrd Mat Mat Mat Gar Mat Used RIF Installer 1 | . . . . 1 . Robots Hacked 1 | . . . . 1 . Non-combat . | . . . . . . Combat 1 | . . . . 1 . Robot Hacks Applied 1 | . . . . 1 . disable_weapons 1 | . . . . 1 . Relay Couplers Released 15 | . . . . 15 . Machine Destruction 15 | . . . . 15 . Attached 1 | . . . . 1 . Fabnet Peak Effective % . | . . . . . . Robots Rewired . | . . . . . . Allies Hacked . | . . . . . . Hacks Repelled . | . . . . . . Allies | -11 -10 -9 -8 -8 -8 -------- Run | Yrd Mat Mat Mat Gar Mat Total Allies 2 | . 1 1 . . . Largest Group 1 | . 1 1 . . . Highest-Rated Group 10 | . 10 10 . . . Highest-Rated Ally 10 | . 10 10 . . . Total Orders 8 | . 5 3 . . . STAY 4 | . 3 1 . . . FOLLOW 4 | . 2 2 . . . Ally Attacks . | . . . . . . Total Damage . | . . . . . . Kills . | . . . . . . Allies Corrupted . | . . . . . . Allies Melted . | . . . . . . Intel | -11 -10 -9 -8 -8 -8 ------- Run | Yrd Mat Mat Mat Gar Mat Robot Analysis Total . | . . . . . . Derelict Logs Recovered . | . . . . . . Drone Launches . | . . . . . . Drone Recoveries . | . . . . . . Exploration | -11 -10 -9 -8 -8 -8 ------------- Run | Yrd Mat Mat Mat Gar Mat Turns Passed 7686 | 114 1930 2061 1215 1814 552 Spaces Moved 3122 | 52 914 925 501 579 151 Core 1 | 1 . . . . . Treads 833 | 10 11 18 155 488 151 Legs . | . . . . . . Wheels 2288 | 41 903 907 346 91 . Hover . | . . . . . . Flight . | . . . . . . Fastest Speed 50 | 50 80 140 155 155 240 Average Speed 172 | 95 140 144 182 236 281 Slowest Speed 480 | 160 320 480 305 400 400 Overloaded Moves . | . . . . . . Propulsion Burnouts . | . . . . . . Robots Hopped . | . . . . . . Cave-ins Triggered . | . . . . . . Exploration Rate (%) 48 | 6 97 61 55 51 19 Regions Visited 5 Branch Regions . Pre-discovered Areas 4 | . 1 3 . . . Known Exits Taken 3 | . 1 1 1 . . Unknown Exits Taken 1 | 1 . . . . . Scrap Searched . | . . . . . . Spaces Dug 77 | . 22 19 7 . 29 Terrain Destroyed 164 | . 24 46 7 . 87 Melee 8 | . . 1 7 . . Projectile 32 | . 18 12 . . 2 AOE 124 | . 6 33 . . 85 Terrain Rammed . | . . . . . . Walls Destroyed . | . . . . . . Machines Disabled . | . . . . . . Actions | -11 -10 -9 -8 -8 -8 --------- Run | Yrd Mat Mat Mat Gar Mat Total 4758 | 90 1430 1437 701 869 231 Wait 860 | 6 391 250 80 104 29 Move 3117 | 51 913 924 500 578 151 Hop . | . . . . . . Pick Up 96 | 9 23 25 10 28 1 Fast Attach 20 | 6 2 5 3 3 1 Attach 26 | 1 . 7 8 7 3 Detach 4 | . . . 2 1 1 Swap 204 | 2 33 98 37 23 11 Drop 77 | 1 11 32 9 21 3 Fire 265 | 14 56 93 42 45 15 Melee 87 | . . 2 10 59 16 Ram 2 | . 1 1 . . . Kick . | . . . . . . Crush . | . . . . . . Escape Stasis . | . . . . . . Rewire . | . . . . . . Trap . | . . . . . . Miscellaneous . | . . . . . . Route ------- -11/Scrapyard -10/Materials (discovered 5 exits: *Mat x3 / [*Min] / [*Sub]) -9/Materials (discovered 4 exits: *Mat x3 / *Min) -8/Materials (discovered 6 exits: *Fac x3 / *Sto x2 / Gar) -8/Garrison -8/Materials History --------- Turn | Location | Event 13 | -11/Scrapyard | Discovered new exit (range 16) 115 | -11/Scrapyard | Entered Materials 308 | -10/Materials | Build established: Mutant 315 | -10/Materials | Discovered new exit (range 13) 457 | -10/Materials | Discovered new exit (range 2) 934 | -10/Materials | Discovered new exit (range 16) 1062 | -10/Materials | Discovered new exit (range 6) 1115 | -10/Materials | Derelicts attacked the area 1430 | -10/Materials | Discovered new exit (range 15) 1830 | -10/Materials | Identified exit to Materials 1869 | -10/Materials | Learned location of Mines (-9) 1915 | -10/Materials | Learned 2 Mines zone layouts 1941 | -10/Materials | Learned location of 2 exits from Mines 1977 | -10/Materials | Learned location of 1 exit from Storage 2045 | -10/Materials | Entered another Materials area 2045 | -9/Materials | Accompanied by 1 ally 2045 | -9/Materials | Evolved 2 slots: Utility x2 2046 | -9/Materials | Identified exit to Materials 2046 | -9/Materials | Identified exit to Mines 3121 | -9/Materials | Lost 3 parts (1p1n1u) 3810 | -9/Materials | Learned location of 1 exit from Storage 3834 | -9/Materials | Core integrity fell below 50% 3866 | -9/Materials | Learned 4 Recycling zone layouts 3912 | -9/Materials | Learned Storage emergency access door positions 3979 | -9/Materials | Learned location of 2 exits from Materials 4027 | -9/Materials | Loaded intel: 1 repair station location 4106 | -9/Materials | Entered another Materials area 4106 | -8/Materials | Evolved 2 slots: Utility x2 4107 | -8/Materials | Identified exit to Factory 4107 | -8/Materials | Identified exit to Storage 4224 | -8/Materials | Build established: Scavenger-Mutant 4591 | -8/Materials | Discovered exit to Factory (range 4) 4706 | -8/Materials | Repaired Structural Scanner 4956 | -8/Materials | Build established: Mutant 5053 | -8/Materials | Discovered exit to Storage (range 13) 5077 | -8/Materials | Garrison activated, responded to threat 5099 | -8/Materials | Discovered exit to Factory (range 6) 5281 | -8/Materials | Identified exit to Garrison 5291 | -8/Materials | System corruption reached 10% 5321 | -8/Materials | Entered Garrison 5323 | -8/Garrison | Lost 5 parts (4u1w) 5367 | -8/Garrison | Triggered checkpoint 5423 | -8/Garrison | Lost 3 parts (1p1n1u) 5489 | -8/Garrison | Installed Relay Interface Framework 5519 | -8/Garrison | Garrison Relay disabled 5683 | -8/Garrison | Triggered checkpoint 5825 | -8/Garrison | Build established: Bothacker-Mutant 6147 | -8/Garrison | Garrison Relay disabled 6344 | -8/Garrison | Core integrity fell below 50% 6447 | -8/Garrison | Triggered checkpoint 6496 | -8/Garrison | Discovered new exit (range 13) 6597 | -8/Garrison | Garrison Relay disabled 6746 | -8/Garrison | Lost 3 parts (1p2u) 7023 | -8/Garrison | Triggered checkpoint 7135 | -8/Garrison | Entered Materials 7472 | -8/Materials | Repaired Med. Treads 7619 | -8/Materials | Build established: Mutant 7632 | -8/Materials | Core integrity fell below 20% 7687 | -8/Materials | Destroyed by G-47 Trooper with Backup Laser I Last Messages --------------- 07663_ K-01 Serf collects debris. 07665_ The unstable cave ceiling collapses. 07666_ Y-45 Defender destroyed. 07668_ Acquired 55 matter. 07670_ K-01 Serf collects debris. 07673_ S-10 Pest destroyed. 07674_ Acquired 11 matter. 07674_ K-01 Serf collects debris. 07675_ U-05 Engineer lays Concrete. 07677_ U-05 Engineer builds a Wall. 07677_ M-13 Machinist repairs Aluminum Leg. 07677_ K-01 Serf collects debris. 07681_ Acquired 6 matter. 07681_ K-01 Serf collects debris. 07682_ System corrupted: FCS attempts to trigger Assault Cannon. 07682_ System corrupted: Assault Cannon misfires. 07684_ K-01 Serf collects debris. 07684_ K-01 Serf sends out distress signal. 07686_ U-05 Engineer lays Concrete. Map ----- +----------------------------------------------------+ | ?????????????????????????????????????????????????? | | ?????????????????????????????????????????????????? | | ?????????????????????????????????????????????????? | | ######?????????#############?????????????????????? | | ######?????????#############?????????????????????? | | ##?????###### ##?????????????????????? | | ##?????###### ##?????????????????????? | | ##?????## # """ ##???????#####?????????? | | ##?????## + """ #### ????#####?????????? | | ##?????## # "=" """ #### ???????? | | ###????## # "R" """ +! ???????? | | ####???##] # """ !#### ???????? | | ####??## # ]#### ????#####?????????? | | ####### ####+##################### ??????? | | #######+### ################### ??????? | | = ?????? | | * ?????? | | * !! ?????? | | ##+######+### ##### ############????????? | | # =![[ # *## ######## ############????????? | | ### """=""" # [## ####### ##???????????????? | | ### """ """ #= ## ##???## # ##???????????????? | | !## """ """ # ## ##???####%! ### ??????????????? | | !## #! ## ####### #=# ## ??????????????? | | !## "T" # !## #######[# ## # ""????????????? | | !## """ # # ## =@*# # # ###???????????? | | ## ! ##### ?## = ![ ## ##???????????? | | *################ ?## " k #=### ##???????????? | | ##############??## ?## """ g%% ???????? | | ###?????????????## ?## """k ## #### ???????? | | ?????????????????? ?## """ # = # ??????????? | | ????????????????????## # u ###??????????? | | ????????????????????###+#+## # " ###??????????? | | ???????????????????? + """ ##???????????? | | ?????????????????????##+###### """ ##???????????? | | ????????????????????? ### ##???????????? | | ??????????????????????????????########???????????? | | ??????????????????????????????#####??????????????? | | ?????????????????????????????????????????????????? | | ?????????????????????????????????????????????????? | | ?????????????????????????????????????????????????? | | ?????????????????????????????????????????????????? | | ?????????????????????????????????????????????????? | | ?????????????????????????????????????????????????? | | | | | | | | | | | | | +----------------------------------------------------+ Best States ------------- Heat Dissipation 53 Energy Generation 15 Energy Capacity 280 Matter Stores 300 Matter Capacity 300 Sight Range 16 Terrain Scan Density 10 Armor Coverage 300 Propulsion Shielding 66 Evasion (%) 44 Recoil Reduction 2 Salvage Targeting 1 Relay Coupler Types 1 Relay Coupler Value 26 Item Schematics ----------------- Cargo Storage Unit | -9/Materials | Hacked Robot Schematics ------------------ G-34 Mercenary | -9/Materials | Hacked M-13 Machinist | -9/Materials | Hacked Fabricated ------------ Nothing Alien Tech Used ----------------- None Achievements -------------- None Challenges ------------ None Game ------ Seed StorageBattlePick Manual? 0 Play Time 01:06:42 Cumulative 162.5 hours Start 2024.10.06 @ 20:24:56 End 2024.10.06 @ 21:28:21 Sessions 1 Manual Loads 0 Difficulty Rogue Special Mode None Game No. 94 Rogue 81 Adventurer 13 Explorer 0 Win Type - Total 3 Types 3/0/0/0/0/0/0/0/0 Lore% 51 Gallery% 67 Achievement% 55 Wizard Run 0 Options --------- Layout 2 ASCII 0 Keyboard 1 Movement Numpad Keybinds 0 Fullscreen 2 Font 16/Swanston Map View 55x47 Zoom Use 0% Tactical HUD 1 Map Filters NONE Filters NONE Steam 0 RUN: 1b840a91-1996-4120-b970-2d90b781c4b7